fUSD/lending_fUSD_20240822
["ID","MTS","AMOUNT","RATE_DAILY","PERIOD"]
[335544898,1724319046995,-500.0,0.00010787,2]
[335544900,1724319047004,-500.0,0.00010787,2]
[335544902,1724319047014,-500.0,0.00010787,2]
[335544904,1724319047023,-500.0,0.00010787,2]
[335544905,1724319047032,-506.33627721,0.00010787,2]
[335544907,1724319047041,-500.0,0.00010787,2]
[335544909,1724319047050,-422.80537789,0.00010787,2]
[335544911,1724319047060,-513.98768487,0.00010787,2]
[335544913,1724319047069,-1031.86,0.00010787,2]
[335544915,1724319047078,-500.0,0.00010787,2]
[335544917,1724319047087,-441.9,0.00010787,2]
[335544919,1724319047097,-387.98447551,0.00010787,2]
[335544921,1724319047106,-1130.77,0.00010787,2]
[335544923,1724319047115,-500.0,0.00010788,2]
[335544925,1724319047124,-500.0,0.00010788,2]
[335544927,1724319047133,-500.0,0.00010788,2]
[335544929,1724319047143,-500.0,0.00010788,2]
[335544931,1724319047152,-506.34479568,0.00010788,2]
[335544933,1724319047161,-500.0,0.00010788,2]
[335544935,1724319047179,-500.0,0.00010788,2]
[335544937,1724319047188,-221.94991064,0.00010788,2]
[335544939,1724319047198,-500.0,0.00010788,2]
[335544940,1724319047209,-500.0,0.00010788,2]
[335544942,1724319047218,-500.0,0.00010788,2]
[335544944,1724319047227,-508.5196522,0.00010788,2]
[335544946,1724319047236,-514.36533558,0.00010788,2]
[335544948,1724319047245,-500.0,0.00010788,2]
[335544950,1724319047254,-500.0,0.00010788,2]
[335544952,1724319047263,-539.26586721,0.00010788,2]
[335544953,1724319047273,-500.0,0.00010788,2]
[335544955,1724319047282,-500.0,0.00010788,2]
[335544957,1724319047291,-500.0,0.00010788,2]
[335544959,1724319047300,-500.0,0.00010788,2]
[335544961,1724319047309,-500.0,0.00010788,2]
[335544963,1724319047318,-649.02015259,0.00010788,2]
[335544965,1724319047327,-500.0,0.00010788,2]
[335544967,1724319047337,-500.0,0.00010788,2]
[335544968,1724319047346,-500.0,0.00010788,2]
[335544970,1724319047355,-500.0,0.00010788,2]
[335544972,1724319047364,-630.53,0.00010788,2]
[335544974,1724319047374,-500.0,0.00010788,2]
[335544976,1724319047383,-327.08870629,0.00010788,2]
[335544978,1724319047392,-500.0,0.00010788,2]
[335544980,1724319047402,-225.63820773,0.00010788,2]
[335544982,1724319047411,-500.0,0.00010788,2]
[335544984,1724319047423,-500.0,0.00010788,2]
[335544986,1724319047432,-500.0,0.00010788,2]
[335544988,1724319047442,-351.5272614,0.00010788,2]
[335544990,1724319047451,-524.3854276,0.00010788,2]
[335544992,1724319047460,-500.0,0.00010788,2]
[335544994,1724319047469,-500.0,0.00010788,2]
[335544996,1724319047478,-509.29595976,0.00010788,2]
[335544998,1724319047487,-500.0,0.00010788,2]
[335545000,1724319047497,-500.0,0.00010788,2]
[335545001,1724319047507,-500.0,0.00010788,2]
[335545003,1724319047517,-500.0,0.00010788,2]
[335545005,1724319047526,-432.97517982,0.00010788,2]
[335545007,1724319047537,-502.46830124,0.00010788,2]
[335545009,1724319047547,-257.25,0.00010788,2]
[335545011,1724319047556,-501.51934552,0.00010788,2]
[335545013,1724319047566,-500.0,0.00010788,2]
[335545015,1724319047576,-500.0,0.00010788,2]
[335545017,1724319047585,-500.0,0.00010788,2]
[335545019,1724319047594,-500.0,0.00010788,2]
[335545021,1724319047603,-500.0,0.00010788,2]
[335545023,1724319047613,-500.0,0.00010788,2]
[335545025,1724319047627,-311.86667788,0.00010788,2]
[335545027,1724319047637,-500.0,0.00010788,2]
[335545029,1724319047647,-500.0,0.00010788,2]
[335545031,1724319047659,-500.0,0.00010788,2]
[335545032,1724319047668,-500.0,0.00010788,2]
[335545034,1724319047678,-500.0,0.00010788,2]
[335545036,1724319047688,-500.0,0.00010788,2]
[335545038,1724319047699,-500.0,0.00010788,2]
[335545041,1724319047709,-500.0,0.00010788,2]
[335545043,1724319047720,-500.0,0.00010788,2]
[335545045,1724319047728,-525.49398932,0.00010788,2]
[335545047,1724319047738,-500.0,0.00010788,2]
[335545049,1724319047747,-500.0,0.00010788,2]
[335545050,1724319047756,-506.9194662,0.00010788,2]
[335545052,1724319047765,-502.46423976,0.00010788,2]
[335545055,1724319047776,-500.0,0.00010788,2]
[335545057,1724319047786,-500.0,0.00010788,2]
[335545059,1724319047797,-500.0,0.00010788,2]
[335545061,1724319047806,-500.0,0.00010788,2]
[335545063,1724319047816,-500.0,0.00010788,2]
[335545065,1724319047825,-500.0,0.00010788,2]
[335545066,1724319047836,-500.0,0.00010788,2]
[335545068,1724319047846,-500.0,0.00010788,2]
[335545070,1724319047855,-500.0,0.00010788,2]
[335545072,1724319047864,-500.0,0.00010788,2]
[335545074,1724319047876,-500.0,0.00010788,2]
[335545076,1724319047887,-500.0,0.00010788,2]
[335545078,1724319047896,-500.0,0.00010788,2]
[335545080,1724319047906,-332.77753013,0.00010788,2]
[335545082,1724319047915,-546.86,0.00010788,2]
[335545083,1724319047924,-500.0,0.00010788,2]
[335545085,1724319047933,-500.0,0.00010788,2]
[335545087,1724319047942,-500.0,0.00010788,2]
[335545089,1724319047951,-500.0,0.00010788,2]
[335545091,1724319047960,-500.0,0.00010788,2]
[335545093,1724319047970,-556.85,0.00010788,2]
[335545095,1724319047979,-500.0,0.00010788,2]
[335545097,1724319047989,-500.0,0.00010788,2]
[335545099,1724319047999,-505.5,0.00010788,2]
[335545101,1724319048007,-500.0,0.00010788,2]
[335545103,1724319048017,-500.0,0.00010788,2]
[335545105,1724319048026,-500.0,0.00010788,2]
[335545107,1724319048035,-500.0,0.00010788,2]
[335545109,1724319048044,-500.0,0.00010788,2]
[335545111,1724319048054,-500.0,0.00010788,2]
[335545113,1724319048062,-486.90703478,0.00010788,2]
[335545115,1724319048072,-500.0,0.00010788,2]
[335545116,1724319048081,-500.0,0.00010788,2]
[335545118,1724319048090,-500.0,0.00010788,2]
[335545120,1724319048099,-500.0,0.00010788,2]
[335545122,1724319048109,-500.0,0.00010788,2]
[335545124,1724319048118,-154.17305117,0.00010788,2]
[335545126,1724319048128,-500.0,0.00010788,2]
[335545128,1724319048137,-500.0,0.00010788,2]
[335545130,1724319048146,-501.69357614,0.00010788,2]
[335545132,1724319048155,-500.0,0.00010788,2]
[335545134,1724319048164,-500.0,0.00010788,2]
[335545136,1724319048174,-500.0,0.00010788,2]
[335545138,1724319048183,-500.0,0.00010788,2]
[335545139,1724319048192,-521.20129793,0.00010788,2]
[335545141,1724319048201,-504.797512,0.00010788,2]
[335545143,1724319048210,-514.67645181,0.00010788,2]
[335545145,1724319048220,-500.0,0.00010788,2]
[335545147,1724319048229,-500.0,0.00010788,2]
[335545149,1724319048238,-522.92162939,0.00010788,2]
[335545151,1724319048248,-154.10589818,0.00010788,2]
[335545153,1724319048257,-500.0,0.00010788,2]
[335545155,1724319048266,-526.16524117,0.00010788,2]
[335545157,1724319048275,-500.0,0.00010788,2]
[335545158,1724319048284,-502.42622289,0.00010788,2]
[335545160,1724319048293,-500.0,0.00010788,2]
[335545162,1724319048302,-501.83847914,0.00010788,2]
[335545164,1724319048312,-503.34631409,0.00010788,2]
[335545166,1724319048321,-529.74361277,0.00010788,2]
[335545168,1724319048330,-502.64533564,0.00010788,2]
[335545170,1724319048339,-505.74735381,0.00010788,2]
[335545172,1724319048348,-500.0,0.00010788,2]
[335545174,1724319048358,-500.0,0.00010788,2]
[335545176,1724319048367,-500.0,0.00010788,2]
[335545178,1724319048376,-500.0,0.00010788,2]
[335545180,1724319048385,-501.64899923,0.00010788,2]
[335545182,1724319048395,-510.64354298,0.00010788,2]
[335545184,1724319048403,-619.52603394,0.00010788,2]
[335545186,1724319048413,-572.47502726,0.00010788,2]
[335545188,1724319048423,-500.0,0.00010788,2]
[335545190,1724319048431,-500.0,0.00010788,2]
[335545192,1724319048441,-505.36645431,0.00010788,2]
[335545194,1724319048450,-501.99760776,0.00010788,2]
[335545196,1724319048459,-502.68562397,0.00010788,2]
[335545198,1724319048468,-500.0,0.00010788,2]
[335545200,1724319048477,-500.0,0.00010788,2]
[335545202,1724319048486,-508.18361604,0.00010788,2]
[335545204,1724319048495,-500.0,0.00010788,2]
[335545206,1724319048505,-500.0,0.00010788,2]
[335545208,1724319048514,-503.29116605,0.00010788,2]
[335545210,1724319048524,-514.82859814,0.00010788,2]
[335545212,1724319048533,-500.0,0.00010788,2]
[335545213,1724319048542,-527.94995247,0.00010788,2]
[335545215,1724319048551,-500.0,0.00010788,2]
[335545217,1724319048560,-503.47300959,0.00010788,2]
[335545219,1724319048569,-515.95282653,0.00010788,2]
[335545221,1724319048578,-500.0,0.00010788,2]
[335545223,1724319048588,-500.0,0.00010788,2]
[335545225,1724319048597,-191.63814523,0.00010788,2]
[335545227,1724319048606,-500.0,0.00010788,2]
[335545229,1724319048616,-504.01359301,0.00010788,2]
[335545230,1724319048627,-513.52681796,0.00010788,2]
[335545232,1724319048636,-500.0,0.00010788,2]
[335545234,1724319048645,-500.0,0.00010788,2]
[335545236,1724319048655,-500.0,0.00010788,2]
[335545238,1724319048665,-500.0,0.00010788,2]
[335545240,1724319048675,-500.0,0.00010788,2]
[335545242,1724319048684,-500.0,0.00010788,2]
[335545244,1724319048694,-500.0,0.00010788,2]
[335545246,1724319048705,-500.0,0.00010788,2]
[335545248,1724319048714,-509.46220051,0.00010788,2]
[335545250,1724319048724,-503.33164257,0.00010788,2]
[335545262,1724319048733,-528.33812687,0.00010788,2]
[335545265,1724319048848,-500.0,0.00010788,2]
[335545267,1724319048858,-500.0,0.00010788,2]
[335545269,1724319048867,-520.79671293,0.00010788,2]
[335545271,1724319048877,-500.0,0.00010788,2]
[335545273,1724319048886,-500.0,0.00010788,2]
[335545275,1724319048896,-500.0,0.00010788,2]
[335545277,1724319048905,-500.0,0.00010788,2]
[335545278,1724319048914,-500.0,0.00010788,2]
[335545280,1724319048924,-500.0,0.00010788,2]
[335545282,1724319048934,-501.76374511,0.00010788,2]
[335545284,1724319048943,-546.4955483,0.00010788,2]
[335545286,1724319048953,-500.0,0.00010788,2]
[335545288,1724319048963,-500.0,0.00010788,2]
[335545290,1724319048972,-510.3157146,0.00010788,2]
[335545292,1724319048982,-500.0,0.00010788,2]
[335545294,1724319048991,-500.0,0.00010788,2]
[335545296,1724319049001,-500.0,0.00010788,2]
[335545298,1724319049011,-500.0,0.00010788,2]
[335545300,1724319049021,-500.0,0.00010788,2]
[335545302,1724319049031,-500.0,0.00010788,2]
[335545304,1724319049040,-502.08757174,0.00010788,2]
[335545306,1724319049049,-500.0,0.00010788,2]
[335545308,1724319049059,-309.54,0.00010788,2]
[335545310,1724319049068,-502.15398854,0.00010788,2]
[335545312,1724319049078,-500.0,0.00010788,2]
[335545314,1724319049087,-510.02238548,0.00010788,2]
[335545316,1724319049096,-500.0,0.00010788,2]
[335545318,1724319049105,-500.0,0.00010788,2]
[335545320,1724319049114,-535.35656503,0.00010788,2]
[335545322,1724319049124,-308.8585759,0.00010788,2]
[335545324,1724319049134,-500.0,0.00010788,2]
[335545326,1724319049143,-500.0,0.00010788,2]
[335545328,1724319049152,-500.0,0.00010788,2]
[335545329,1724319049161,-500.0,0.00010788,2]
[335545331,1724319049172,-500.0,0.00010788,2]
[335545333,1724319049181,-506.82665951,0.00010788,2]
[335545335,1724319049191,-500.0,0.00010788,2]
[335545337,1724319049202,-536.77843723,0.00010788,2]
[335545339,1724319049211,-589.71544151,0.00010788,2]
[335545341,1724319049221,-524.92593244,0.00010788,2]
[335545343,1724319049230,-500.0,0.00010788,2]
[335545345,1724319049240,-500.0,0.00010788,2]
[335545347,1724319049249,-500.0,0.00010788,2]
[335545349,1724319049259,-500.0,0.00010788,2]
[335545351,1724319049269,-508.42429613,0.00010788,2]
[335545353,1724319049278,-500.0,0.00010788,2]
[335545355,1724319049288,-500.0,0.00010788,2]
[335545357,1724319049297,-500.0,0.00010788,2]
[335545359,1724319049306,-500.0,0.00010788,2]
[335545361,1724319049315,-526.041951,0.00010788,2]
[335545363,1724319049324,-502.01336722,0.00010788,2]
[335545365,1724319049333,-527.92977836,0.00010788,2]
[335545367,1724319049343,-500.0,0.00010788,2]
[335545369,1724319049354,-500.0,0.00010788,2]
[335545371,1724319049363,-500.0,0.00010788,2]
[335545373,1724319049372,-500.0,0.00010788,2]
[335545375,1724319049382,-500.0,0.00010788,2]
[335545377,1724319049391,-500.0,0.00010788,2]
[335545379,1724319049400,-500.0,0.00010788,2]
[335545380,1724319049409,-500.0,0.00010788,2]
[335545381,1724319049419,-519.84118872,0.00010788,2]
[335545382,1724319049428,-271.4606256,0.00010788,2]
[335545383,1724319049437,-500.0,0.00010788,2]
[335545384,1724319049447,-500.0,0.00010788,2]
[335545385,1724319049456,-500.0,0.00010788,2]
[335545386,1724319049465,-500.0,0.00010788,2]
[335545387,1724319049474,-500.0,0.00010788,2]
[335545388,1724319049484,-500.0,0.00010788,2]
[335545389,1724319049493,-500.0,0.00010788,2]
[335545390,1724319049502,-525.82017216,0.00010788,2]
[335545391,1724319049512,-287.94101785,0.00010788,2]
[335545392,1724319049521,-513.42626294,0.00010788,2]
[335545393,1724319049531,-500.0,0.00010788,2]
[335545394,1724319049540,-500.0,0.00010788,2]
[335545395,1724319049549,-500.0,0.00010788,2]
[335545396,1724319049558,-500.0,0.00010788,2]
[335545397,1724319049568,-500.0,0.00010788,2]
[335545398,1724319049577,-500.0,0.00010788,2]
[335545399,1724319049587,-500.0,0.00010788,2]
[335545400,1724319049596,-500.0,0.00010788,2]
[335545401,1724319049605,-500.0,0.00010788,2]
[335545403,1724319049615,-500.0,0.00010788,2]
[335545405,1724319049627,-500.0,0.00010788,2]
[335545407,1724319049636,-500.0,0.00010788,2]
[335545408,1724319049645,-500.0,0.00010788,2]
[335545410,1724319049654,-529.15788244,0.00010788,2]
[335545413,1724319049665,-500.0,0.00010788,2]
[335545414,1724319049675,-510.3435775,0.00010788,2]
[335545416,1724319049684,-121.5819434,0.00010788,2]
[335545422,1724319049729,332.79,9.869e-05,2]
[335545436,1724319049855,-360.38700913,0.00010785,2]
[335545438,1724319049868,-164.21028516,0.00010785,2]
[335545440,1724319049877,-302.8622702,0.00010785,2]
[335545442,1724319049889,-197.1377298,0.00010785,2]
[335545444,1724319049899,-500.0,0.00010786,2]
[335545446,1724319049908,-500.0,0.00010787,2]
[335545448,1724319049919,-378.4180566,0.00010788,2]
[335545450,1724319049929,-517.01632053,0.00010788,2]
[335545452,1724319049939,-523.67767665,0.00010788,2]
[335545454,1724319049951,-522.29447996,0.00010788,2]
[335545456,1724319049960,-500.0,0.00010788,2]
[335545458,1724319049970,-94.8107094,0.00010788,2]
[335545460,1724319049981,-405.1892906,0.00010788,2]
[335545462,1724319049990,-247.25106202,0.00010788,2]
[335545464,1724319050000,-500.0,0.00010788,2]
[335545466,1724319050009,-65.95964738,0.00010788,2]
[335545468,1724319050020,-379.9422459,0.00010788,2]
[335545471,1724319050045,-54.09810672,0.00010788,2]
[335545473,1724319050054,-500.0,0.00010788,2]
[335545475,1724319050063,-422.12982265,0.00010788,2]
[335545477,1724319050076,-77.87017735,0.00010788,2]
[335545479,1724319050085,-500.0,0.00010788,2]
[335545481,1724319050094,-500.0,0.00010788,2]
[335545483,1724319050103,-500.0,0.00010788,2]
[335545485,1724319050112,-500.0,0.00010788,2]
[335545487,1724319050122,-500.0,0.00010788,2]
[335545489,1724319050131,-500.0,0.00010788,2]
[335545491,1724319050140,-500.0,0.00010788,2]
[335545493,1724319050149,-500.0,0.00010788,2]
[335545495,1724319050158,-500.0,0.00010788,2]
[335545497,1724319050170,-500.0,0.00010788,2]
[335545498,1724319050178,-500.0,0.00010788,2]
[335545499,1724319050187,-500.0,0.00010788,2]
[335545501,1724319050196,-500.0,0.00010788,2]
[335545503,1724319050205,-500.0,0.00010788,2]
[335545505,1724319050215,-500.0,0.00010788,2]
[335545507,1724319050224,-540.53293625,0.00010788,2]
[335545509,1724319050232,-538.17832924,0.00010788,2]
[335545511,1724319050241,-500.0,0.00010788,2]
[335545513,1724319050251,-500.0,0.00010788,2]
[335545515,1724319050259,-500.0,0.00010788,2]
[335545517,1724319050269,-529.62479038,0.00010788,2]
[335545519,1724319050278,-500.0,0.00010788,2]
[335545521,1724319050287,-551.96257228,0.00010788,2]
[335545523,1724319050296,-495.70754114,0.00010788,2]
[335545524,1724319050306,-500.0,0.00010788,2]
[335545526,1724319050315,-226.09631957,0.00010788,2]
[335545528,1724319050324,-500.0,0.00010788,2]
[335545530,1724319050333,-500.0,0.00010788,2]
[335545532,1724319050342,-500.0,0.00010788,2]
[335545534,1724319050351,-500.0,0.00010788,2]
[335545536,1724319050360,-205.54,0.00010788,2]
[335545538,1724319050369,-523.60075644,0.00010788,2]
[335545540,1724319050380,-523.49758613,0.00010788,2]
[335545542,1724319050389,-513.28274559,0.00010788,2]
[335545544,1724319050398,-500.0,0.00010788,2]
[335545546,1724319050407,-500.0,0.00010788,2]
[335545548,1724319050416,-500.0,0.00010788,2]
[335545550,1724319050427,-500.0,0.00010788,2]
[335545552,1724319050436,-527.62618957,0.00010788,2]
[335545554,1724319050445,-500.0,0.00010788,2]
[335545556,1724319050455,-500.0,0.00010788,2]
[335545558,1724319050464,-500.0,0.00010788,2]
[335545560,1724319050474,-500.0,0.00010788,2]
[335545562,1724319050483,-500.0,0.00010788,2]
[335545564,1724319050491,-500.0,0.00010788,2]
[335545566,1724319050500,-500.0,0.00010788,2]
[335545568,1724319050509,-530.04089723,0.00010788,2]
[335545570,1724319050519,-513.78129235,0.00010788,2]
[335545572,1724319050528,-500.0,0.00010788,2]
[335545574,1724319050536,-523.84355131,0.00010788,2]
[335545576,1724319050545,-500.0,0.00010788,2]
[335545578,1724319050554,-568.91423448,0.00010788,2]
[335545580,1724319050563,-500.0,0.00010788,2]
[335545582,1724319050572,-500.0,0.00010788,2]
[335545584,1724319050582,-500.0,0.00010788,2]
[335545586,1724319050591,-500.0,0.00010788,2]
[335545588,1724319050600,-507.89193488,0.00010788,2]
[335545590,1724319050609,-500.0,0.00010788,2]
[335545592,1724319050620,-534.86155734,0.00010788,2]
[335545593,1724319050629,-500.0,0.00010788,2]
[335545594,1724319050638,-500.0,0.00010788,2]
[335545595,1724319050647,-507.12121841,0.00010788,2]
[335545596,1724319050656,-519.00461159,0.00010788,2]
[335545597,1724319050665,-505.41967669,0.00010788,2]
[335545598,1724319050675,-500.0,0.00010788,2]
[335545599,1724319050781,-359.1494467,0.00010788,2]
[335545600,1724319050790,-508.61863561,0.00010788,2]
[335545601,1724319050800,-500.0,0.00010788,2]
[335545602,1724319050809,-500.0,0.00010788,2]
[335545603,1724319050819,-505.98601972,0.00010788,2]
[335545604,1724319050828,-500.0,0.00010788,2]
[335545605,1724319050837,-500.0,0.00010788,2]
[335545606,1724319050847,-500.0,0.00010788,2]
[335545607,1724319050856,-512.88043365,0.00010788,2]
[335545608,1724319050866,-540.4739257,0.00010788,2]
[335545609,1724319050875,-527.48029532,0.00010788,2]
[335545610,1724319050884,-508.59514231,0.00010788,2]
[335545611,1724319050894,-451.80541044,0.00010788,2]
[335545612,1724319050904,-511.14360211,0.00010788,2]
[335545613,1724319050913,-500.67356869,0.00010788,2]
[335545614,1724319050924,-588.55213705,0.00010788,2]
[335545615,1724319050933,-500.41574891,0.00010788,2]
[335545616,1724319050942,-529.59230609,0.00010788,2]
[335545617,1724319050951,-505.68809988,0.00010788,2]
[335545618,1724319050961,-522.13721501,0.00010788,2]
[335545619,1724319050971,-500.0,0.00010788,2]
[335545620,1724319050980,-183.2050832,0.00010788,2]
[335545621,1724319050989,-525.68659034,0.00010788,2]
[335545622,1724319050999,-513.96914678,0.00010788,2]
[335545623,1724319051008,-522.53276977,0.00010788,2]
[335545624,1724319051017,-500.0,0.00010788,2]
[335545625,1724319051027,-500.0,0.00010788,2]
[335545626,1724319051037,-500.0,0.00010788,2]
[335545627,1724319051046,-500.0,0.00010788,2]
[335545628,1724319051055,-500.0,0.00010788,2]
[335545629,1724319051065,-619.14700076,0.00010788,2]
[335545630,1724319051074,-530.03975656,0.00010788,2]
[335545631,1724319051083,-509.64210736,0.00010788,2]
[335545632,1724319051093,-521.55533065,0.00010788,2]
[335545633,1724319051102,-500.0,0.00010788,2]
[335545634,1724319051112,-506.12734007,0.00010788,2]
[335545635,1724319051121,-500.0,0.00010788,2]
[335545636,1724319051131,-500.0,0.00010788,2]
[335545637,1724319051140,-500.0,0.00010788,2]
[335545638,1724319051149,-509.16595215,0.00010788,2]
[335545639,1724319051159,-500.0,0.00010788,2]
[335545640,1724319051168,-500.0,0.00010788,2]
[335545641,1724319051178,-532.05058753,0.00010788,2]
[335545642,1724319051189,-509.64126823,0.00010788,2]
[335545643,1724319051199,-527.58110191,0.00010788,2]
[335545644,1724319051208,-500.0,0.00010788,2]
[335545645,1724319051217,-224.96,0.00010788,2]
[335545646,1724319051227,-517.77973752,0.00010788,2]
[335545647,1724319051236,-518.46534155,0.00010788,2]
[335545648,1724319051245,-294.39671816,0.00010788,2]
[335545649,1724319051254,-500.0,0.00010788,2]
[335545650,1724319051264,-500.0,0.00010788,2]
[335545651,1724319051274,-502.2119401,0.00010788,2]
[335545652,1724319051283,-523.45957669,0.00010788,2]
[335545653,1724319051293,-532.21496292,0.00010788,2]
[335545654,1724319051302,-503.21383099,0.00010788,2]
[335545655,1724319051311,-510.25290307,0.00010788,2]
[335545656,1724319051321,-500.0,0.00010788,2]
[335545657,1724319051331,-517.29694804,0.00010788,2]
[335545658,1724319051340,-500.0,0.00010788,2]
[335545659,1724319051349,-500.0,0.00010788,2]
[335545660,1724319051358,-550.0113894,0.00010788,2]
[335545661,1724319051367,-516.152633,0.00010788,2]
[335545662,1724319051376,-507.72206306,0.00010788,2]
[335545663,1724319051385,-508.94630394,0.00010788,2]
[335545664,1724319051395,-514.44685996,0.00010788,2]
[335545665,1724319051403,-509.7358557,0.00010788,2]
[335545666,1724319051413,-509.01928255,0.00010788,2]
[335545667,1724319051423,-512.72034094,0.00010788,2]
[335545668,1724319051434,-507.53806994,0.00010788,2]
[335545669,1724319051445,-500.0,0.00010788,2]
[335545670,1724319051456,-500.0,0.00010788,2]
[335545671,1724319051465,-503.96361352,0.00010788,2]
[335545672,1724319051474,-603.04,0.00010788,2]
[335545673,1724319051484,-502.60974017,0.00010788,2]
[335545674,1724319051493,-502.39671986,0.00010788,2]
[335545675,1724319051502,-500.0,0.00010788,2]
[335545676,1724319051512,-500.0,0.00010788,2]
[335545677,1724319051521,-502.84498651,0.00010788,2]
[335545678,1724319051531,-500.0,0.00010788,2]
[335545679,1724319051541,-500.0,0.00010788,2]
[335545680,1724319051553,-503.31996109,0.00010788,2]
[335545681,1724319051563,-504.14704719,0.00010788,2]
[335545682,1724319051573,-503.12216758,0.00010788,2]
[335545683,1724319051582,-492.42462801,0.00010788,2]
[335545684,1724319051591,-507.82157139,0.00010788,2]
[335545685,1724319051601,-516.94761267,0.00010788,2]
[335545686,1724319051611,-500.0,0.00010788,2]
[335545687,1724319051627,-500.0,0.00010788,2]
[335545688,1724319051638,-506.84582805,0.00010788,2]
[335545689,1724319051649,-500.0,0.00010788,2]
[335545690,1724319051659,-509.59116319,0.00010788,2]
[335545691,1724319051671,-500.0,0.00010788,2]
[335545692,1724319051681,-500.0,0.00010788,2]
[335545693,1724319051692,-500.0,0.00010788,2]
[335545694,1724319051704,-499.57714175,0.00010788,2]
[335545695,1724319051715,-500.0,0.00010788,2]
[335545696,1724319051725,-363.84,0.00010788,2]
[335545697,1724319051734,-450.93784733,0.00010788,2]
[335545698,1724319051743,-500.0,0.00010788,2]
[335545699,1724319051756,-500.0,0.00010788,2]
[335545700,1724319051769,-351.36,0.00010788,2]
[335545701,1724319051779,-500.0,0.00010788,2]
[335545702,1724319051789,-500.0,0.00010788,2]
[335545703,1724319051799,-462.08,0.00010788,2]
[335545704,1724319051809,-500.0,0.00010788,2]
[335545705,1724319051820,-500.0,0.00010788,2]
[335545706,1724319051831,-500.0,0.00010788,2]
[335545707,1724319051840,-644.8,0.00010788,2]
[335545708,1724319051850,-500.0,0.00010788,2]
[335545709,1724319051859,-500.0,0.00010788,2]
[335545710,1724319051868,-509.87997997,0.00010788,2]
[335545711,1724319051878,-284.30333341,0.00010788,2]
[335545712,1724319051890,-500.0,0.00010788,2]
[335545713,1724319051899,-500.0,0.00010788,2]
[335545714,1724319051909,-500.0,0.00010788,2]
[335545715,1724319051918,-500.0,0.00010788,2]
[335545716,1724319051928,-500.0,0.00010788,2]
[335545717,1724319051938,-500.0,0.00010788,2]
[335545718,1724319051947,-500.0,0.00010788,2]
[335545719,1724319051956,-500.0,0.00010788,2]
[335545720,1724319051966,-500.0,0.00010788,2]
[335545721,1724319051975,-500.0,0.00010788,2]
[335545722,1724319051984,-500.0,0.00010788,2]
[335545723,1724319051993,-500.0,0.00010788,2]
[335545724,1724319052004,-500.0,0.00010788,2]
[335545725,1724319052014,-500.0,0.00010788,2]
[335545726,1724319052023,-500.0,0.00010788,2]
[335545727,1724319052034,-500.0,0.00010788,2]
[335545728,1724319052043,-500.0,0.00010788,2]
[335545729,1724319052052,-500.0,0.00010788,2]
[335545730,1724319052062,-500.0,0.00010788,2]
[335545731,1724319052072,-500.0,0.00010788,2]
[335545732,1724319052081,-500.0,0.00010788,2]
[335545733,1724319052091,-500.0,0.00010788,2]
[335545734,1724319052102,-500.0,0.00010788,2]
[335545735,1724319052111,-500.0,0.00010788,2]
[335545736,1724319052120,-500.0,0.00010788,2]
[335545737,1724319052130,-500.0,0.00010788,2]
[335545738,1724319052139,-500.0,0.00010788,2]